fUSD/lending_fUSD_20240212
["ID","MTS","AMOUNT","RATE_DAILY","PERIOD"]
[313893288,1707777031696,-719.83,0.00022671,2]
[313893289,1707777031707,-2320.10122968,0.00022671,2]
[313893290,1707777031720,-1225.06063692,0.00022671,2]
[313893291,1707777031733,-57475.87606379,0.00022671,2]
[313893292,1707777031746,-473.48937259,0.00022671,2]
[313893293,1707777031761,-836.62527966,0.00022671,2]
[313893294,1707777031774,-50996.84741736,0.00022671,2]
[313893295,1707777031785,-617.42329712,0.000228,2]
[313893296,1707777031795,-719.11,0.00022811,2]
[313893297,1707777031805,-722.36,0.00022878,2]
[313893298,1707777031815,-2895.34830613,0.00022895,2]
[313893299,1707777031825,-729.47,0.00022895,2]
[313893300,1707777031837,-736.8,0.00022895,2]
[313893301,1707777031848,-533.35113375,0.00022896,2]
[313893302,1707777031858,-27347.73243307,0.00022897,2]
[313893303,1707777031871,-3447.99910402,0.00022897,2]
[313893304,1707777031910,-2578.49536444,0.00022897,2]
[313893305,1707777031930,-8313.27084102,0.00022897,2]
[313893306,1707777031943,-318.130758,0.00022897,2]
[313893307,1707777031955,-358.40636624,0.00022897,2]
[313893308,1707777031968,-2298.33629159,0.00022897,2]
[313893309,1707777031990,-606.71636698,0.00022897,2]
[313893313,1707777032632,-570.09,0.00022897,2]
[313893314,1707777032646,-378.25609224,0.00022897,2]
[313893315,1707777037680,-717.03,0.00022671,2]
[313893316,1707777037693,-3971.06956802,0.00022897,2]
[313893317,1707777037706,-175784.26302137,0.00022897,2]
[313893318,1707777037716,-5445.45616532,0.00022898,2]
[313893319,1707777037727,-4802.42662464,0.00022898,2]
[313893320,1707777037737,-711.21,0.00022898,2]
[313893321,1707777037746,-155.6532933,0.00022899,2]
[313893322,1707777037756,-2623.23288806,0.00022899,2]
[313893323,1707777037768,-921.46,0.00022899,2]
[313893324,1707777037777,-16938.65411985,0.00022899,2]
[313893325,1707777037787,-157402.4444026,0.000229,3]
[313893326,1707777037800,-4911.9774192,0.000229,3]
[313893327,1707777037832,-32770.15731145,0.000229,3]
[313893328,1707777037844,-174860.86301238,0.000229,3]
[313893329,1707777037877,-580.966017,0.000229,3]
[313893330,1707777037888,-47972.28904343,0.000229,3]
[313893331,1707777037899,-561.22252724,0.000229,3]
[313893332,1707777037911,-278.20064693,0.000229,3]
[313893333,1707777037922,-894.44295914,0.000229,3]
[313893334,1707777037945,-398.96989766,0.000229,3]
[313893335,1707777037959,-60286.75622603,0.000229,3]
[313893336,1707777037969,-349936.84384855,0.000229,2]
[313893347,1707777040246,-1630.00467291,0.000229,2]
[313893350,1707777040287,-13680.0,0.000229,2]
[313893357,1707777040365,-547.52749393,0.000229,2]
[313893364,1707777040418,-265.8551209,0.000229,2]
[313893366,1707777040430,-26305.26322742,0.000229,2]
[313893372,1707777040479,-574.03358918,0.000229,2]
[313893405,1707777041184,-342.71257393,0.000229,2]
[313893407,1707777041197,-277.25000026,0.000229,2]
[313893425,1707777042976,-2045.6675536,0.000229,2]
[313893426,1707777042988,-1157.46784734,0.000229,2]
[313893427,1707777042999,-2774.18053035,0.000229,2]
[313893428,1707777043023,-1050.04694569,0.000229,2]
[313893429,1707777043041,-9947.49929053,0.000229,2]
[313893430,1707777043056,-4422.89949671,0.000229,2]
[313893431,1707777043085,-536.42797147,0.000229,2]
[313893432,1707777043098,-79951.77879431,0.000229,2]
[313893433,1707777043107,-3000.0,0.000229,2]
[313893434,1707777043117,-8803.7,0.000229,2]
[313893435,1707777043126,-8803.7,0.000229,2]
[313893436,1707777043135,-367.5,0.000229,2]
[313893437,1707777043144,-1629.96236338,0.000229,2]
[313893438,1707777043153,-367.5,0.000229,2]
[313893439,1707777043163,-347.87790231,0.000229,2]
[313893440,1707777043172,-163.1765402,0.000229,2]
[313893441,1707777043181,-154.89,0.00022912,2]
[313893442,1707777043190,-163.1765402,0.00022918,2]
[313893443,1707777043200,-163.1765402,0.00022935,2]
[313893445,1707777043209,-163.1765402,0.00022953,2]
[313893447,1707777043217,-163.1765402,0.0002297,2]
[313893448,1707777043227,-163.1765402,0.00022988,2]
[313893450,1707777043238,-155.20328314,0.00022998,2]
[313893451,1707777043247,-420.31048292,0.00022998,2]
[313893452,1707777043256,-524.53082137,0.00022998,2]
[313893453,1707777043266,-216.17358909,0.00022998,2]
[313893454,1707777043275,-2906.98454629,0.00022998,2]
[313893455,1707777043284,-1147.82957012,0.00022998,2]
[313893456,1707777043293,-188.01484828,0.00022998,2]
[313893457,1707777043302,-928.80846762,0.00022998,2]
[313893458,1707777043311,-4538.04604803,0.00022998,2]
[313893459,1707777043320,-2779.97200748,0.00022998,2]
[313893460,1707777043329,-524.52037888,0.00022998,2]
[313893461,1707777043338,-1984.42096922,0.00022998,2]
[313893462,1707777043348,-1858.86108655,0.00022998,2]
[313893463,1707777043357,-263.31763666,0.00022998,2]
[313893464,1707777043367,-197.81179479,0.00022999,2]
[313893465,1707777043376,-221.03775387,0.00022999,2]
[313893466,1707777043386,-501.49341394,0.00022999,2]
[313893467,1707777043395,-159.43846532,0.00022999,2]
[313893468,1707777043405,-212.67476727,0.00022999,2]
[313893470,1707777043414,-274.34099471,0.00022999,2]
[313893471,1707777043423,-248.17085233,0.00022999,2]
[313893473,1707777043432,-245.3374952,0.00022999,2]
[313893474,1707777043441,-216.45732375,0.00022999,2]
[313893475,1707777043450,-150.0,0.00022999,2]
[313893476,1707777043459,-241.89580262,0.00022999,2]
[313893477,1707777043469,-131290.98976201,0.00023,2]
[313893478,1707777043480,-753514.18261002,0.00023,2]
[313893479,1707777045698,-1651.17913606,0.00023,2]
[313893480,1707777045863,-6677.90381432,0.00023,2]
[313893481,1707777045976,-1630.19557337,0.00023,2]
[313893482,1707777045987,-3875.0,0.00023,2]
[313893483,1707777045998,-365.45188775,0.00023,2]
[313893484,1707777046036,-248050.58242977,0.00023,2]
[313893487,1707777233236,413.66,0.00020821,2]
[313893488,1707777256432,308.54,0.00022127,2]
[313893489,1707777347272,274.78905992,0.00022,2]
[313893490,1707777354385,-770.66386256,0.00022669,2]
[313893491,1707777354420,-729.12,0.00022669,2]
[313893492,1707777354442,-724.55,0.00022669,2]
[313893493,1707777354463,-716.3,0.00022669,2]
[313893494,1707777354484,-735.82,0.00022669,2]
[313893495,1707777354507,-732.06,0.00022669,2]
[313893496,1707777354530,-153.6583925,0.0002267,2]
[313893497,1707777354553,-153.6583925,0.00022715,2]
[313893498,1707777354573,-250.0,0.00022739,2]
[313893499,1707777354593,-721.83,0.00022753,2]
[313893500,1707777354614,-153.6583925,0.00022761,2]
[313893501,1707777361884,150.0,0.00022767,2]
[313893502,1707777371403,6008.68095994,0.00022739,2]
[313893503,1707777477083,196.33,0.00021918,2]
[313893504,1707777556460,2093.0243986,0.000229,7]
[313893505,1707777667369,406.96,0.00020821,2]
[313893506,1707777718268,257.11,0.00021878,2]
[313893507,1707777762973,250.0,0.00021918,2]
[313893508,1707777989812,153.66,0.00021945,2]
[313893509,1707778145808,401.67,0.00019868,2]
[313893510,1707778146038,401.67,0.00022132,2]
[313893518,1707778210910,1000.0,0.00021732,2]
[313893535,1707778231867,-491.14457367,0.00022391,2]
[313893536,1707778231876,-225.21040554,0.00022392,2]
[313893537,1707778231888,-1183.34058462,0.00022392,2]
[313893538,1707778231897,-203.38617025,0.00022396,2]
[313893539,1707778231909,-732.36048737,0.00022396,2]
[313893540,1707778231919,-154.3983482,0.00022437,2]
[313893541,1707778231930,-153.66,0.00022516,2]
[313893542,1707778231939,-150.0,0.00022537,2]
[313893543,1707778231949,-229.7157206,0.00022538,2]
[313893544,1707778231959,-1095.76441049,0.00022538,2]
[313893545,1707778231970,-1095.7644105,0.00022538,2]
[313893546,1707778231980,-1881.3029,0.00022538,2]
[313893547,1707778231991,-6880.6434,0.00022538,2]
[313893548,1707778232000,-2500.0,0.00022538,2]
[313893549,1707778232010,-3676.0327,0.00022538,2]
[313893550,1707778232019,-500.0,0.00022538,2]
[313893551,1707778232030,-1000.0,0.00022538,2]
[313893552,1707778232039,-6944.9789,0.00022538,2]
[313893553,1707778232049,-82394.31416781,0.00022538,2]
[313893554,1707778232074,-454.77124209,0.00022538,2]
[313893555,1707778232086,-5000.0,0.00022538,2]
[313893556,1707778232115,-517.85068696,0.00022538,2]
[313893557,1707778232128,-2009.17611856,0.00022538,2]
[313893558,1707778232141,-877.59480746,0.00022538,2]
[313893559,1707778232154,-929.82241406,0.00022538,2]
[313893560,1707778232167,-564.66263687,0.00022538,2]
[313893561,1707778232179,-521.07491688,0.00022538,2]
[313893562,1707778232199,-737.05569696,0.00022538,2]
[313893563,1707778232210,-3409.97307988,0.00022538,2]
[313893564,1707778232222,-11209.78124114,0.00022538,2]
[313893565,1707778232233,-3009.39434132,0.00022538,2]
[313893566,1707778232248,-350.0,0.00022538,2]
[313893567,1707778232260,-435.04752656,0.00022538,2]
[313893570,1707778232271,-1224.28502304,0.00022538,2]
[313893572,1707778232283,-603.01113768,0.00022538,2]
[313893575,1707778232306,-401.911,0.00022538,2]
[313893577,1707778232317,-320418.83286273,0.00022538,2]
[313893579,1707778232326,-615.23788555,0.00022539,2]
[313893581,1707778232336,-545.94481101,0.00022539,2]
[313893584,1707778232346,-154.39834817,0.00022553,2]
[313893585,1707778232355,-15068.83526644,0.00022628,2]
[313893587,1707778232364,-687.08930327,0.00022637,2]
[313893590,1707778232374,-5055.29818565,0.00022637,2]
[313893591,1707778232383,-8504.7123,0.00022638,2]
[313893592,1707778232392,-11306.17268664,0.00022639,2]
[313893593,1707778232400,-499.99,0.00022639,2]
[313893594,1707778232410,-229.71572058,0.0002265,2]
[313893595,1707778232419,-154.39834817,0.00022669,2]
[313893596,1707778232428,-726.22,0.00022679,2]
[313893597,1707778232437,-723.11,0.00022736,2]
[313893598,1707778232447,-45453.28119794,0.00022738,2]
[313893599,1707778232466,-341.48500725,0.00022738,2]
[313893610,1707778238009,-9100.276,0.00022738,2]
[313893611,1707778238022,-4929.7194,0.00022738,2]
[313893612,1707778238072,-3406.56654231,0.00022738,2]
[313893613,1707778238127,-2855.63900607,0.00022738,2]
[313893614,1707778238141,-13160.78508403,0.00022738,2]
[313893615,1707778238368,-1021.74341,0.00022738,2]
[313893616,1707778238385,-687.18839238,0.00022738,2]
[313893618,1707778238406,-92384.5511759,0.00022738,2]
[313893620,1707778238419,-95741.83847631,0.00022738,2]
[313893655,1707778240717,-2254.99532709,0.00022738,2]
[313893656,1707778240729,-404.8058661,0.00022738,2]
[313893657,1707778240745,-1000.32999957,0.00022738,2]
[313893658,1707778240766,-737.49842,0.00022738,2]
[313893659,1707778241367,-309355.24861481,0.00022738,2]
[313893660,1707778241377,-16482.12,0.00022739,2]
[313893661,1707778241386,-229.71572058,0.00022762,2]
[313893662,1707778241395,-338.23569729,0.00022766,2]
[313893663,1707778241404,-11664.84173762,0.00022767,2]
[313893664,1707778241413,-730.88,0.00022768,2]
[313893665,1707778241422,-736.82,0.00022769,2]
[313893667,1707778241431,-724.54,0.00022769,2]
[313893668,1707778241441,-736.87,0.00022769,2]
[313893669,1707778241450,-712.2,0.00022769,2]
[313893670,1707778241459,-16100.61933877,0.0002277,2]
[313893671,1707778241469,-727.04,0.0002277,2]
[313893672,1707778241478,-154.39834817,0.00022784,2]
[313893674,1707778241490,-300.0,0.00022813,2]
[313893675,1707778241500,-288.86245936,0.00022873,2]
[313893676,1707778241509,-229.71572058,0.00022873,2]
[313893677,1707778241519,-679.57477584,0.00022897,2]
[313893678,1707778241528,-1000.0,0.00022897,2]
[313893679,1707778241537,-1691.0472,0.00022899,2]
[313893680,1707778241546,-67045.3978,0.00022899,2]
[313893681,1707778241556,-3270.74884605,0.000229,2]
[313893682,1707778241565,-154.39834817,0.000229,2]
[313893683,1707778241574,-545.944811,0.00022962,2]
[313893684,1707778241584,-731.55,0.00022962,2]
[313893685,1707778241593,-719.19,0.00022978,2]
[313893686,1707778241603,-229.71572058,0.00022985,2]
[313893687,1707778241613,-155.0,0.00022996,2]
[313893688,1707778241622,-4291.33106861,0.00022996,2]
[313893689,1707778241632,-600.25958164,0.00022996,2]
[313893690,1707778241642,-96770.99689027,0.00022997,2]
[313893691,1707778241651,-440.2577674,0.00022997,2]
[313893692,1707778241660,-155.0,0.00022998,2]
[313893693,1707778241670,-155.0,0.00022998,2]
[313893694,1707778241681,-181.7569552,0.00022998,2]
[313893695,1707778241690,-19090.39904017,0.00022999,2]
[313893696,1707778241699,-343.1154288,0.00022999,2]
[313893697,1707778241708,-200.11588708,0.00022999,2]
[313893698,1707778241718,-266.57926775,0.00022999,2]
[313893699,1707778241727,-155.0,0.00022999,2]
[313893700,1707778241737,-13033.36353206,0.00022999,2]
[313893701,1707778241748,-153.71261787,0.00022999,2]
[313893702,1707778241758,-150.0,0.00022999,2]
[313893703,1707778241768,-723.15,0.00023,2]
[313893704,1707778241778,-1563510.72999759,0.00023,2]
[313893705,1707778241787,-281.30882819,0.00023,3]
[313893706,1707778241796,-329795.58806924,0.00023,2]
[313893707,1707778241806,-1870127.31051987,0.00023,2]
[313893708,1707778241814,-153.66,0.00023088,2]
[313893709,1707778241823,-194.0,0.00023105,2]
[313893710,1707778241834,-1294.37805503,0.00023179,2]
[313893711,1707778241843,-257.11,0.00023522,2]
[313893712,1707778241853,-11306.17268657,0.00023865,2]
[313893713,1707778241863,-2453.74,0.00024384,2]
[313893714,1707778241873,-644.0,0.00024384,2]
[313893715,1707778241882,-401.67,0.00024396,2]
[313893716,1707778241892,-615.23788551,0.00024439,2]
[313893717,1707778241901,-1000.0,0.00024449,2]
[313893718,1707778241910,-250.0,0.00024658,2]
[313893719,1707778241919,-194.0,0.00024749,2]
[313893720,1707778241929,-1593.87124613,0.0002479,2]
[313893721,1707778241939,-1593.87124613,0.0002479,2]
[313893722,1707778241948,-202.0,0.00024791,2]
[313893723,1707778241957,-953.22813054,0.00024799,2]
[313893724,1707778241966,-953.2281305,0.00024799,2]
[313893725,1707778241976,-1256.25370781,0.00025,2]
[313893726,1707778241985,-430.24374614,0.00025,2]
[313893727,1707778241994,-168.19545361,0.00025,2]
[313893728,1707778242004,-1591.12802386,0.00025,2]
[313893729,1707778242013,-937.82804985,0.00025,2]
[313893730,1707778242022,-304.35564689,0.00025,2]
[313893731,1707778242031,-550.0,0.00025,3]
[313893732,1707778242041,-11306.17268657,0.00025092,2]
[313893733,1707778242050,-257.11,0.00025166,2]
[313893734,1707778242060,-200.0,0.00025262,2]
[313893735,1707778242071,-1000.0,0.000255,2]
[313893736,1707778242081,-1593.87124613,0.0002593,2]
[313893737,1707778242358,-953.2281305,0.0002593,2]
[313893738,1707778242367,-3000.0,0.00026,2]
[313893739,1707778242376,-11306.17268657,0.00026318,2]
[313893740,1707778242385,-615.23788551,0.00026339,3]
[313893741,1707778242394,-194.0,0.00026393,2]
[313893742,1707778242404,-401.67,0.0002666,2]
[313893743,1707778242413,-257.11,0.0002681,2]
[313893744,1707778242423,-600.0,0.00027,3]
[313893745,1707778242433,-7999.99,0.00027165,6]
[313893746,1707778242442,-1000.0,0.00027165,2]
[313893747,1707778242451,-155.0,0.00027397,2]
[313893748,1707778242460,-11306.17268657,0.00027544,2]
[313893749,1707778242469,-1593.87124613,0.00027625,2]
[313893750,1707778242478,-953.2281305,0.00027626,2]
[313893751,1707778242488,-200.0,0.00027709,2]
[313893752,1707778242498,-200.0,0.00027709,3]
[313893753,1707778242508,-6359.01821542,0.00028,2]
[313893754,1707778242517,-158.99292675,0.00028,2]
[313893755,1707778242527,-217.05329416,0.00028,2]
[313893756,1707778242538,-217.05329416,0.00028,2]
[313893757,1707778242548,-217.05329416,0.00028,2]
[313893758,1707778242557,-217.05329416,0.00028,2]
[313893759,1707778242566,-217.05329416,0.00028,2]
[313893760,1707778242576,-217.05329416,0.00028,2]
[313893761,1707778242585,-217.05329416,0.00028,2]
[313893762,1707778242594,-217.05329416,0.00028,2]
[313893763,1707778242604,-217.05329416,0.00028,2]
[313893764,1707778242613,-217.05329416,0.00028,2]
[313893765,1707778242622,-217.05329416,0.00028,2]
[313893766,1707778242632,-217.05329416,0.00028,2]
[313893767,1707778242641,-217.05329416,0.00028,2]
[313893768,1707778242650,-217.05329416,0.00028,2]
[313893769,1707778242660,-217.05329416,0.00028,2]
[313893770,1707778242669,-217.05329416,0.00028,2]
[313893771,1707778242679,-217.05329416,0.00028,2]
[313893772,1707778242688,-217.05329416,0.00028,2]
[313893773,1707778242697,-217.05329416,0.00028,2]
[313893774,1707778242706,-217.05329416,0.00028,2]
[313893775,1707778242715,-217.05329416,0.00028,2]
[313893776,1707778242724,-217.05329416,0.00028,2]
[313893777,1707778242734,-217.05329416,0.00028,2]
[313893778,1707778242743,-217.05329416,0.00028,2]
[313893779,1707778242752,-217.05329416,0.00028,2]
[313893780,1707778242761,-217.05329416,0.00028,2]
[313893781,1707778242771,-217.05329416,0.00028,2]
[313893782,1707778242780,-217.05329416,0.00028,2]
[313893783,1707778242790,-217.05329416,0.00028,2]
[313893784,1707778242800,-217.05329416,0.00028,2]
[313893785,1707778242810,-194.0,0.00028037,2]
[313893786,1707778242819,-80537.51914504,0.000281,2]
[313893787,1707778242829,-1000.0,0.000282,2]
[313893789,1707778242838,-615.23788551,0.00028239,4]
[313893791,1707778242847,-22264.0,0.000283,2]
[313893793,1707778242857,-257.11,0.00028454,2]
[313893794,1707778242866,-2500.0,0.000285,5]
[313893795,1707778242875,-11306.17268657,0.00028771,2]
[313893796,1707778242885,-550.61358106,0.00028858,2]
[313893797,1707778242896,-8027.30451841,0.00028858,2]
[313893798,1707778242906,-2606.90049886,0.00028858,2]
[313893799,1707778242915,-200.0,0.00028858,2]
[313893801,1707778242925,-401.67,0.00028923,2]
[313893802,1707778242934,-650.0,0.00029,3]
[313893804,1707778242943,-1500.0,0.00029,5]
[313893806,1707778242952,-200.0,0.0002923,2]
[313893808,1707778242961,-3524.0,0.000293,2]
[313893810,1707778242971,-1593.87124613,0.00029321,2]
[313893811,1707778242979,-953.2281305,0.00029322,2]
[313893812,1707778242989,-3270.74884605,0.0002937,2]
[313893813,1707778242998,-152.87813406,0.00029498,2]
[313893814,1707778243007,-1500.0,0.000295,5]
[313893815,1707778243016,-800.0,0.00029558,2]
[313893816,1707778243025,-221.26580427,0.00029599,2]
[313893817,1707778243034,-155.0,0.00029599,2]
[313893818,1707778243043,-246.97905613,0.00029599,2]
[313893819,1707778243053,-1678.653945,0.000296,2]
[313893820,1707778243066,-194.0,0.00029681,2]
[313893821,1707778243076,-150.01,0.00029795,2]
[313893822,1707778243085,-3314.16939965,0.00029795,2]
[313893823,1707778243094,-20692.11103292,0.00029796,2]
[313893824,1707778243103,-1000.0,0.00029882,2]
[313893825,1707778243112,-231.24360725,0.00029898,2]
[313893826,1707778243122,-259.3149079,0.00029898,2]
[313893827,1707778243131,-500.0,0.00029898,30]
[313893828,1707778243140,-250.85299332,0.00029898,2]
[313893829,1707778243151,-247.77956234,0.00029898,2]
[313893830,1707778243160,-1044.12925591,0.00029898,2]
[313893831,1707778243170,-358.07175882,0.00029898,2]
[313893832,1707778243179,-155.0,0.00029898,2]
[313893833,1707778243188,-155.0,0.00029898,2]
[313893834,1707778243197,-4264.93332037,0.00029898,2]
[313893835,1707778243206,-286.61939797,0.00029898,2]
[313893836,1707778243215,-263.09495336,0.00029898,30]
[313893837,1707778243224,-372.63960663,0.00029899,2]
[313893838,1707778243233,-55555.0,0.000299,2]
[313893839,1707778243242,-1503.48121062,0.000299,2]
[313893840,1707778243251,-1503.48121062,0.000299,2]
[313893841,1707778243260,-1503.48121062,0.000299,2]
[313893842,1707778243270,-1503.48121062,0.000299,2]
[313893843,1707778243278,-1503.48121062,0.000299,2]
[313893844,1707778243287,-1503.48121062,0.000299,2]
[313893845,1707778243296,-1503.48121062,0.000299,2]
[313893846,1707778243305,-1503.48121062,0.000299,2]
[313893847,1707778243314,-1503.48121062,0.000299,2]
[313893849,1707778243324,-841.0,0.0002994,2]
[313893850,1707778243333,-2832.0,0.0002994,2]
[313893852,1707778243342,-952.0,0.0002994,2]
[313893854,1707778243351,-593.912,0.0002994,2]
[313893856,1707778243360,-234.625,0.0002994,2]
[313893858,1707778243368,-1253.0,0.0002994,2]
[313893860,1707778243377,-707.0,0.0002994,2]
[313893862,1707778243386,-1231.0,0.0002994,2]
[313893864,1707778243395,-539.57,0.0002994,2]
[313893866,1707778243405,-1003.0,0.0002994,2]
[313893868,1707778243413,-429.0,0.0002994,2]
[313893871,1707778243423,-1947.0,0.0002994,2]
[313893874,1707778243432,-237.0,0.0002994,2]
[313893876,1707778243442,-858.0,0.0002994,2]
[313893878,1707778243451,-222.345,0.0002994,2]
[313893880,1707778243460,-321.0,0.0002994,2]
[313893882,1707778243473,-343.0,0.0002994,2]
[313893884,1707778243482,-215.406,0.0002994,2]
[313893886,1707778243491,-2287.0,0.0002994,2]
[313893888,1707778243501,-7409.0,0.0002994,2]
[313893890,1707778243510,-19827.0,0.0002994,2]
[313893893,1707778243520,-2924.0,0.0002994,2]
[313893895,1707778243529,-8156.0,0.0002994,2]
[313893897,1707778243539,-151.005,0.0002994,2]
[313893899,1707778243548,-150.0,0.0002994,2]
[313893901,1707778243557,-180.0,0.0002994,2]
[313893903,1707778243566,-1036.0,0.0002994,2]
[313893905,1707778243575,-151.228,0.0002994,2]
[313893906,1707778243584,-180.308,0.0002994,2]
[313893907,1707778243594,-163.877,0.0002994,2]
[313893908,1707778243603,-150.0,0.0002994,2]
[313893909,1707778243612,-500.0,0.00029943,2]
[313893910,1707778243622,-200.0,0.00029943,2]
[313893911,1707778243632,-11306.17268657,0.00029997,2]
[313893912,1707778243642,-150.0,0.00029999,2]
[313893913,1707778243651,-50000.0,0.0003,2]
[313893914,1707778243661,-1817.46566731,0.0003,4]
[313893915,1707778243670,-1176.20171541,0.0003,4]
[313893916,1707778243680,-2655.70887327,0.0003,4]
[313893917,1707778243690,-19148.63208535,0.0003,4]
[313893919,1707778243699,-9687.39994509,0.0003,2]
[313893921,1707778243708,-2488.2,0.0003,2]
[313893923,1707778243717,-179.33734757,0.0003,4]
[313893925,1707778243726,-155.0,0.0003,2]
[313893927,1707778243736,-227.481217,0.0003,4]
[313893929,1707778243745,-640.8035048,0.0003,4]
[313893931,1707778243755,-155.0,0.0003,2]
[313893933,1707778243764,-623.58548265,0.0003,4]
[313893935,1707778243773,-1604.83648142,0.0003,4]
[313893937,1707778243782,-155.0,0.0003,4]
[313893939,1707778243792,-62908.48573385,0.0003,2]
[313893941,1707778243801,-750.44981968,0.0003,2]
[313893943,1707778243810,-344.1461432,0.0003,2]
[313893945,1707778243819,-2562.04185694,0.0003,5]
[313893947,1707778243828,-142276.35113518,0.0003,2]
[313893949,1707778243838,-3000.0,0.0003,2]
[313893951,1707778243847,-3000.0,0.0003,2]
[313893953,1707778243856,-3000.0,0.0003,2]
[313893955,1707778243865,-3000.0,0.0003,2]
[313893957,1707778243875,-3000.0,0.0003,2]
[313893959,1707778243884,-3000.0,0.0003,2]
[313893961,1707778243893,-1500.0,0.0003,5]
[313893963,1707778243902,-153.9,0.0003,2]
[313893965,1707778243912,-153.9,0.0003,2]
[313893967,1707778243921,-1000.0,0.0003,2]
[313893969,1707778243931,-178.0,0.0003,2]
[313893971,1707778243941,-1000.0,0.0003,2]
[313893973,1707778243950,-713.95,0.00030095,2]
[313893975,1707778243959,-257.11,0.00030097,2]
[313893977,1707778243969,-1000.0,0.000301,2]
[313893979,1707778243978,-1000.0,0.000301,2]
[313893982,1707778243988,-155.1,0.00030137,2]
[313893984,1707778244001,-615.23788551,0.00030139,4]
[313893986,1707778244011,-800.0,0.00030155,2]
[313893988,1707778244021,-437.50823727,0.000302,2]
[313893990,1707778244030,-1000.0,0.000304,2]
[313893992,1707778244040,-1000.0,0.000304,2]
[313893994,1707778244049,-1500.0,0.000305,5]
[313893996,1707778244059,-3088.0,0.000306,5]
[313893998,1707778244070,-1000.0,0.000306,2]
[313894000,1707778244080,-346.0,0.000307,2]
[313894002,1707778244091,-920.9,0.000307,2]
[313894004,1707778244102,-500.0,0.00030751,2]
[313894006,1707778244111,-200.0,0.00030751,2]
[313894008,1707778244121,-800.0,0.00030751,2]
[313894010,1707778244131,-10000.0,0.00030857,2]
[313894012,1707778244142,-1921.83698069,0.00030899,4]
[313894014,1707778244152,-1010.85167881,0.00030995,4]
[313894016,1707778244162,-338.34278266,0.00030995,5]
[313894018,1707778244171,-159.13404187,0.00030995,4]
[313894020,1707778244182,-357.79347987,0.00030995,4]
[313894023,1707778244192,-14871.4954686,0.00030996,2]
[313894025,1707778244201,-250.39794572,0.00030997,4]
[313894027,1707778244210,-700.98035507,0.00030997,4]
[313894029,1707778244219,-305.07399308,0.00030997,4]
[313894031,1707778244228,-3000.0,0.00030997,2]
[313894033,1707778244238,-241.52031169,0.00030997,4]
[313894035,1707778244248,-661.86363556,0.00030997,4]
[313894037,1707778244258,-13506.54349406,0.00030999,4]
[313894039,1707778244268,-38826.18474163,0.00031,2]
[313894068,1707778244529,-150.0,0.00022737,2]
[313894070,1707778244539,-150.0,0.00022742,2]
[313894073,1707778244552,-150.0,0.00022756,2]
[313894075,1707778244562,-150.0,0.00022767,2]
[313894077,1707778244571,-150.0,0.00022778,2]
[313894079,1707778244581,-163.37189015,0.00022812,2]
[313894081,1707778244590,-150.0,0.00022838,2]
[313894083,1707778244599,-150.0,0.00022856,2]
[313894085,1707778244608,-150.0,0.00022908,2]
[313894087,1707778244617,-150.0,0.00022929,2]
[313894089,1707778244627,-150.0,0.00022945,2]
[313894091,1707778244636,-150.0,0.00022955,2]
[313894093,1707778244646,-150.0,0.00022982,2]
[313894095,1707778244655,-150.0,0.00022983,2]
[313894097,1707778244664,-451.63922735,0.00031,2]
[313894099,1707778244676,-3071.69301819,0.00031,2]
[313894101,1707778244688,-4492.87477847,0.00031,2]
[313894104,1707778244699,-3157.60823436,0.00031,2]
[313894106,1707778244709,-299.96147713,0.00031,4]
[313894108,1707778244718,-258.00607391,0.00031,4]
[313894110,1707778244728,-215.07255691,0.00031,4]
[313894112,1707778244737,-7650.63576145,0.00031,2]